fUSD/lending_fUSD_20240322
["ID","MTS","AMOUNT","RATE_DAILY","PERIOD"]
[320086904,1711144243139,-1600.0,0.00021,3]
[320086906,1711144243149,-9216.98,0.00021096,2]
[320086908,1711144243159,-2000.0,0.00021096,2]
[320086910,1711144243170,-162.68141363,0.00021129,2]
[320086912,1711144243180,-4067.2150525,0.00021307,2]
[320086914,1711144243189,-162.68141363,0.00021359,2]
[320086916,1711144243199,-2518.00228,0.0002137,2]
[320086918,1711144243209,-443.06698031,0.00021377,2]
[320086920,1711144243219,-6040.8974187,0.00021402,2]
[320086922,1711144243228,-399.4551009,0.00021444,2]
[320086924,1711144243238,-154.0,0.00021556,2]
[320086926,1711144243247,-151.0,0.00021556,2]
[320086928,1711144243259,-453.0,0.00021556,2]
[320086929,1711144243269,-242.95,0.00021558,2]
[320086931,1711144243279,-162.68141363,0.00021588,2]
[320086934,1711144243288,-161.597189,0.00021644,2]
[320086936,1711144243298,-4067.2150525,0.00021714,2]
[320086938,1711144243308,-10000.0,0.00021817,2]
[320086940,1711144243318,-1000.0,0.00021817,2]
[320086942,1711144243327,-189.05406198,0.00021817,2]
[320086944,1711144243337,-162.68141363,0.00021817,2]
[320086945,1711144243346,-372.71300114,0.00021817,2]
[320086946,1711144243355,-1294.92045773,0.00021817,2]
[320086947,1711144243365,-1789.52800817,0.00021817,5]
[320086948,1711144243374,-443.06698031,0.0002183,2]
[320086949,1711144243383,-1247.36000966,0.00021915,2]
[320086950,1711144243392,-500.0,0.00021917,2]
[320086951,1711144243401,-500.0,0.00021917,2]
[320086952,1711144243410,-553.66779902,0.00021917,2]
[320086953,1711144243419,-502.13450718,0.00021917,2]
[320086954,1711144243428,-500.0,0.00021917,2]
[320086955,1711144243437,-505.19578934,0.00021917,2]
[320086957,1711144243446,-293.64973095,0.00021917,2]
[320086959,1711144243455,-500.0,0.00021917,2]
[320086961,1711144243464,-500.0,0.00021917,2]
[320086962,1711144243474,-895.98,0.00021917,2]
[320086964,1711144243483,-500.0,0.00021917,2]
[320086966,1711144243492,-500.0,0.00021917,2]
[320086968,1711144243501,-500.0,0.00021917,2]
[320086970,1711144243511,-500.0,0.00021917,2]
[320086972,1711144243520,-744.25,0.00021917,2]
[320086974,1711144243533,-500.0,0.00021917,2]
[320086976,1711144243542,-500.0,0.00021917,2]
[320086979,1711144243551,-515.28761551,0.00021917,2]
[320086981,1711144243563,-819.62,0.00021917,2]
[320086983,1711144243573,-500.0,0.00021917,2]
[320086985,1711144243583,-500.0,0.00021917,2]
[320086987,1711144243592,-500.0,0.00021917,2]
[320086989,1711144243601,-580.78,0.00021917,2]
[320086991,1711144243611,-283.78123689,0.00021917,2]
[320086993,1711144243620,-500.0,0.00021917,2]
[320086995,1711144243629,-500.0,0.00021917,2]
[320086996,1711144243638,-500.0,0.00021917,2]
[320086999,1711144243647,-500.0,0.00021917,2]
[320087000,1711144243656,-500.0,0.00021917,2]
[320087002,1711144243665,-500.0,0.00021917,2]
[320087004,1711144243675,-500.0,0.00021917,2]
[320087007,1711144243684,-500.0,0.00021917,2]
[320087008,1711144243694,-500.0,0.00021917,2]
[320087010,1711144243703,-500.0,0.00021917,2]
[320087012,1711144243711,-500.0,0.00021917,2]
[320087014,1711144243721,-500.0,0.00021917,2]
[320087016,1711144243730,-500.0,0.00021917,2]
[320087018,1711144243739,-500.0,0.00021917,2]
[320087020,1711144243748,-500.0,0.00021917,2]
[320087023,1711144243758,-500.0,0.00021917,2]
[320087054,1711144244040,-500.0,0.00021917,2]
[320087056,1711144244049,-1063.49,0.00021917,2]
[320087058,1711144244059,-500.0,0.00021917,2]
[320087060,1711144244069,-920.47,0.00021917,2]
[320087062,1711144244078,-500.0,0.00021917,2]
[320087064,1711144244087,-500.0,0.00021917,2]
[320087066,1711144244096,-501.05765416,0.00021917,2]
[320087068,1711144244105,-500.0,0.00021917,2]
[320087070,1711144244116,-500.0,0.00021917,2]
[320087072,1711144244125,-500.0,0.00021917,2]
[320087074,1711144244134,-755.04,0.00021917,2]
[320087076,1711144244143,-678.47,0.00021917,2]
[320087078,1711144244153,-500.0,0.00021917,2]
[320087080,1711144244162,-1296.0,0.00021917,2]
[320087082,1711144244171,-500.0,0.00021917,2]
[320087084,1711144244180,-500.0,0.00021917,2]
[320087086,1711144244189,-1303.41,0.00021917,2]
[320087088,1711144244199,-500.0,0.00021917,2]
[320087090,1711144244208,-500.0,0.00021917,2]
[320087092,1711144244217,-500.0,0.00021917,2]
[320087094,1711144244226,-500.0,0.00021917,2]
[320087096,1711144244235,-500.0,0.00021917,2]
[320087098,1711144244244,-500.0,0.00021917,2]
[320087100,1711144244255,-500.0,0.00021917,2]
[320087102,1711144244264,-503.12,0.00021917,2]
[320087104,1711144244273,-505.6966153,0.00021917,2]
[320087106,1711144244282,-500.0,0.00021917,2]
[320087108,1711144244292,-500.0,0.00021917,2]
[320087110,1711144244302,-500.0,0.00021917,2]
[320087112,1711144244311,-511.53,0.00021917,2]
[320087114,1711144244320,-500.0,0.00021917,2]
[320087116,1711144244329,-500.0,0.00021917,2]
[320087118,1711144244338,-500.0,0.00021917,2]
[320087120,1711144244348,-561.78697831,0.00021917,2]
[320087122,1711144244357,-626.88,0.00021917,2]
[320087124,1711144244366,-500.0,0.00021917,2]
[320087126,1711144244375,-500.0,0.00021917,2]
[320087128,1711144244385,-956.24,0.00021917,2]
[320087130,1711144244394,-500.0,0.00021917,2]
[320087132,1711144244403,-918.3,0.00021917,2]
[320087134,1711144244412,-500.0,0.00021917,2]
[320087136,1711144244421,-517.39690303,0.00021917,2]
[320087138,1711144244430,-500.0,0.00021917,2]
[320087140,1711144244440,-694.44,0.00021917,2]
[320087142,1711144244448,-500.0,0.00021917,2]
[320087144,1711144244457,-500.0,0.00021917,2]
[320087146,1711144244467,-696.49,0.00021917,2]
[320087148,1711144244476,-500.0,0.00021917,2]
[320087150,1711144244485,-500.0,0.00021917,2]
[320087152,1711144244494,-500.0,0.00021917,2]
[320087154,1711144244504,-500.0,0.00021917,2]
[320087156,1711144244517,-500.0,0.00021917,2]
[320087158,1711144244526,-501.25773039,0.00021917,2]
[320087160,1711144244535,-500.0,0.00021917,2]
[320087162,1711144244544,-519.52,0.00021917,2]
[320087164,1711144244554,-500.0,0.00021917,2]
[320087166,1711144244563,-698.97,0.00021917,2]
[320087168,1711144244571,-500.0,0.00021917,2]
[320087169,1711144244581,-500.0,0.00021917,2]
[320087172,1711144244591,-824.72,0.00021917,2]
[320087174,1711144244601,-1305.35,0.00021917,2]
[320087176,1711144244611,-505.0023148,0.00021917,2]
[320087178,1711144244620,-500.0,0.00021917,2]
[320087179,1711144244629,-500.0,0.00021917,2]
[320087182,1711144244639,-740.93,0.00021917,2]
[320087184,1711144244648,-600.32,0.00021917,2]
[320087186,1711144244657,-500.0,0.00021917,2]
[320087188,1711144244666,-500.0,0.00021917,2]
[320087190,1711144244675,-500.0,0.00021917,2]
[320087192,1711144244684,-595.25,0.00021917,2]
[320087194,1711144244693,-500.0,0.00021917,2]
[320087196,1711144244703,-500.0,0.00021917,2]
[320087198,1711144244711,-500.0,0.00021917,2]
[320087200,1711144244720,-500.0,0.00021917,2]
[320087202,1711144244729,-500.0,0.00021917,2]
[320087204,1711144244738,-500.0,0.00021917,2]
[320087206,1711144244747,-1331.71,0.00021917,2]
[320087207,1711144244756,-500.0,0.00021917,2]
[320087210,1711144244766,-500.0,0.00021917,2]
[320087212,1711144244775,-500.0,0.00021917,2]
[320087214,1711144244785,-500.0,0.00021917,2]
[320087215,1711144244794,-964.01,0.00021917,2]
[320087216,1711144244803,-500.0,0.00021917,2]
[320087217,1711144244811,-501.43541595,0.00021917,2]
[320087218,1711144244820,-500.0,0.00021917,2]
[320087219,1711144244829,-500.0,0.00021917,2]
[320087220,1711144244838,-500.0,0.00021917,2]
[320087221,1711144244847,-500.0,0.00021917,2]
[320087222,1711144244856,-593.62,0.00021917,2]
[320087223,1711144244865,-500.0,0.00021917,2]
[320087224,1711144244874,-1019.06,0.00021917,2]
[320087225,1711144244883,-608.96,0.00021917,2]
[320087226,1711144244892,-1644.74,0.00021917,2]
[320087227,1711144244901,-500.0,0.00021917,2]
[320087229,1711144244911,-500.0,0.00021917,2]
[320087231,1711144244920,-500.0,0.00021917,2]
[320087233,1711144244930,-1336.83,0.00021917,2]
[320087235,1711144244939,-500.0,0.00021917,2]
[320087237,1711144244948,-500.0,0.00021917,2]
[320087239,1711144244957,-500.0,0.00021917,2]
[320087241,1711144244967,-500.0,0.00021917,2]
[320087243,1711144244976,-562.6,0.00021917,2]
[320087245,1711144244986,-1438.95,0.00021917,2]
[320087246,1711144244996,-500.0,0.00021917,2]
[320087247,1711144245008,-500.0,0.00021917,2]
[320087248,1711144245017,-500.0,0.00021917,2]
[320087249,1711144245026,-1052.29,0.00021917,2]
[320087250,1711144245035,-500.0,0.00021917,2]
[320087251,1711144245044,-500.0,0.00021917,2]
[320087252,1711144245053,-500.0,0.00021917,2]
[320087253,1711144245063,-1257.45,0.00021917,2]
[320087254,1711144245072,-500.0,0.00021917,2]
[320087255,1711144245081,-500.0,0.00021917,2]
[320087256,1711144245090,-500.0,0.00021917,2]
[320087257,1711144245099,-500.0,0.00021917,2]
[320087258,1711144245109,-500.0,0.00021917,2]
[320087259,1711144245119,-886.78,0.00021917,2]
[320087260,1711144245129,-500.0,0.00021917,2]
[320087261,1711144245139,-502.92279596,0.00021917,2]
[320087262,1711144245148,-523.14,0.00021917,2]
[320087263,1711144245159,-306.45778726,0.00021917,2]
[320087264,1711144245168,-500.0,0.00021917,2]
[320087265,1711144245178,-509.76073637,0.00021917,2]
[320087266,1711144245188,-504.25779718,0.00021917,2]
[320087267,1711144245197,-509.85162329,0.00021917,2]
[320087268,1711144245206,-500.0,0.00021917,2]
[320087269,1711144245215,-500.0,0.00021917,2]
[320087270,1711144245225,-500.0,0.00021917,2]
[320087271,1711144245234,-500.0,0.00021917,2]
[320087272,1711144245244,-508.17,0.00021917,2]
[320087273,1711144245254,-500.0,0.00021917,2]
[320087274,1711144245263,-500.0,0.00021917,2]
[320087275,1711144245272,-500.0,0.00021917,2]
[320087276,1711144245281,-500.0,0.00021917,2]
[320087277,1711144245290,-500.0,0.00021917,2]
[320087278,1711144245299,-500.0,0.00021917,2]
[320087279,1711144245308,-500.0,0.00021917,2]
[320087280,1711144245317,-500.0,0.00021917,2]
[320087281,1711144245326,-500.0,0.00021917,2]
[320087282,1711144245335,-664.44,0.00021917,2]
[320087283,1711144245344,-500.0,0.00021917,2]
[320087284,1711144245353,-500.0,0.00021917,2]
[320087285,1711144245362,-1777.22,0.00021917,2]
[320087286,1711144245371,-500.0,0.00021917,2]
[320087287,1711144245380,-500.0,0.00021917,2]
[320087288,1711144245389,-500.0,0.00021917,2]
[320087289,1711144245399,-500.0,0.00021917,2]
[320087290,1711144245408,-500.0,0.00021917,2]
[320087291,1711144245417,-500.0,0.00021917,2]
[320087292,1711144245427,-500.0,0.00021917,2]
[320087293,1711144245436,-500.0,0.00021917,2]
[320087294,1711144245447,-500.0,0.00021917,2]
[320087295,1711144245457,-500.0,0.00021917,2]
[320087296,1711144245467,-1100.46,0.00021917,2]
[320087297,1711144245478,-500.0,0.00021917,2]
[320087298,1711144245488,-500.0,0.00021917,2]
[320087299,1711144245498,-654.89,0.00021917,2]
[320087300,1711144245509,-500.0,0.00021917,2]
[320087301,1711144245518,-515.75,0.00021917,2]
[320087302,1711144245530,-500.0,0.00021917,2]
[320087303,1711144245540,-500.0,0.00021917,2]
[320087304,1711144245549,-1420.67,0.00021917,2]
[320087305,1711144245558,-500.0,0.00021917,2]
[320087306,1711144245568,-2231.49,0.00021917,2]
[320087307,1711144245578,-500.0,0.00021917,2]
[320087308,1711144245587,-500.0,0.00021917,2]
[320087309,1711144245598,-500.0,0.00021917,2]
[320087310,1711144245608,-499.3011792,0.00021917,2]
[320087311,1711144245617,-500.0,0.00021917,2]
[320087312,1711144245627,-1061.88,0.00021917,2]
[320087313,1711144245636,-502.35,0.00021917,2]
[320087314,1711144245645,-500.0,0.00021917,2]
[320087315,1711144245655,-500.0,0.00021917,2]
[320087316,1711144245664,-500.0,0.00021917,2]
[320087317,1711144245673,-1314.15,0.00021917,2]
[320087318,1711144245682,-500.0,0.00021917,2]
[320087319,1711144245694,-944.38,0.00021917,2]
[320087320,1711144245704,-500.0,0.00021917,2]
[320087321,1711144245713,-1048.47,0.00021917,2]
[320087322,1711144245722,-500.0,0.00021917,2]
[320087323,1711144245733,-500.0,0.00021917,2]
[320087324,1711144245742,-500.0,0.00021917,2]
[320087325,1711144245750,-1513.43,0.00021917,2]
[320087326,1711144245761,-500.0,0.00021917,2]
[320087327,1711144245771,-1634.52,0.00021917,2]
[320087328,1711144245780,-500.0,0.00021917,2]
[320087330,1711144245789,-500.0,0.00021917,2]
[320087332,1711144245798,-500.0,0.00021917,2]
[320087334,1711144245808,-909.06,0.00021917,2]
[320087335,1711144245817,-1084.75,0.00021917,2]
[320087337,1711144245826,-500.0,0.00021917,2]
[320087339,1711144245835,-1324.94,0.00021917,2]
[320087340,1711144245845,-1110.61,0.00021917,2]
[320087342,1711144245854,-500.0,0.00021917,2]
[320087344,1711144245864,-1039.33,0.00021917,2]
[320087346,1711144245873,-950.27,0.00021917,2]
[320087348,1711144245883,-2096.0,0.00021917,2]
[320087350,1711144245892,-500.0,0.00021917,2]
[320087352,1711144245902,-500.0,0.00021917,2]
[320087354,1711144245912,-500.0,0.00021917,2]
[320087356,1711144245921,-500.0,0.00021917,2]
[320087358,1711144245930,-500.0,0.00021917,2]
[320087360,1711144245939,-500.0,0.00021917,2]
[320087361,1711144245948,-500.0,0.00021917,2]
[320087363,1711144245957,-1430.41,0.00021917,2]
[320087365,1711144245967,-709.8,0.00021917,2]
[320087367,1711144245977,-500.0,0.00021917,2]
[320087369,1711144245986,-1143.38,0.00021917,2]
[320087371,1711144245995,-1219.49,0.00021917,2]
[320087373,1711144246006,-1463.57,0.00021917,2]
[320087375,1711144246015,-1325.33,0.00021917,2]
[320087377,1711144246026,-643.92592106,0.00021917,2]
[320087379,1711144246036,-501.07336764,0.00021917,2]
[320087381,1711144246046,-501.77579901,0.00021917,2]
[320087383,1711144246055,-500.0,0.00021917,2]
[320087385,1711144246064,-597.61,0.00021917,2]
[320087387,1711144246074,-500.0,0.00021917,2]
[320087389,1711144246083,-1163.08,0.00021917,2]
[320087391,1711144246093,-500.0,0.00021917,2]
[320087393,1711144246102,-500.0,0.00021917,2]
[320087395,1711144246112,-1372.53,0.00021917,2]
[320087397,1711144246121,-500.0,0.00021917,2]
[320087399,1711144246130,-500.0,0.00021917,2]
[320087401,1711144246140,-1420.61,0.00021917,2]
[320087403,1711144246149,-1788.77,0.00021917,2]
[320087405,1711144246159,-1736.09,0.00021917,2]
[320087408,1711144246169,-500.0,0.00021917,2]
[320087410,1711144246178,-500.0,0.00021917,2]
[320087412,1711144246188,-500.0,0.00021917,2]
[320087414,1711144246198,-1036.88,0.00021917,2]
[320087416,1711144246207,-1122.75,0.00021917,2]
[320087418,1711144246217,-500.0,0.00021917,2]
[320087420,1711144246226,-2381.1,0.00021917,2]
[320087422,1711144246236,-500.0,0.00021917,2]
[320087424,1711144246245,-660.26,0.00021917,2]
[320087426,1711144246254,-500.0,0.00021917,2]
[320087428,1711144246264,-500.0,0.00021917,2]
[320087430,1711144246274,-2762.52,0.00021917,2]
[320087432,1711144246283,-2289.81,0.00021917,2]
[320087434,1711144246292,-500.0,0.00021917,2]
[320087436,1711144246302,-885.42,0.00021917,2]
[320087438,1711144246311,-500.0,0.00021917,2]
[320087440,1711144246320,-1222.81,0.00021917,2]
[320087441,1711144246330,-1268.23,0.00021917,2]
[320087443,1711144246339,-1068.46,0.00021917,2]
[320087446,1711144246348,-500.0,0.00021917,2]
[320087448,1711144246358,-500.0,0.00021917,2]
[320087450,1711144246367,-1696.31,0.00021917,2]
[320087452,1711144246377,-1662.96,0.00021917,2]
[320087454,1711144246386,-278.91404774,0.00021917,2]
[320087456,1711144246396,-1455.92,0.00021917,2]
[320087458,1711144246405,-515.19,0.00021917,2]
[320087460,1711144246414,-2119.78,0.00021917,2]
[320087462,1711144246423,-502.57444069,0.00021917,2]
[320087464,1711144246432,-1383.2,0.00021917,2]
[320087466,1711144246441,-782.36,0.00021917,2]
[320087468,1711144246451,-1477.02,0.00021917,2]
[320087470,1711144246460,-1428.48,0.00021917,2]
[320087472,1711144246470,-500.0,0.00021917,2]
[320087474,1711144246479,-913.73,0.00021917,2]
[320087476,1711144246488,-500.0,0.00021917,2]
[320087478,1711144246497,-500.0,0.00021917,2]
[320087480,1711144246507,-500.0,0.00021917,2]
[320087482,1711144246517,-500.0,0.00021917,2]
[320087484,1711144246528,-500.0,0.00021917,2]
[320087486,1711144246538,-504.02038634,0.00021917,2]
[320087488,1711144246547,-500.0,0.00021917,2]
[320087490,1711144246557,-500.0,0.00021917,2]
[320087492,1711144246566,-522.5,0.00021917,2]
[320087494,1711144246574,-500.0,0.00021917,2]
[320087496,1711144246582,-500.0,0.00021917,2]
[320087497,1711144246591,-500.0,0.00021917,2]
[320087498,1711144246601,-500.0,0.00021917,2]
[320087499,1711144246610,-500.0,0.00021917,2]
[320087501,1711144246619,-500.0,0.00021917,2]
[320087503,1711144246628,-1053.92,0.00021917,2]
[320087505,1711144246637,-1849.59,0.00021917,2]
[320087507,1711144246647,-500.69409913,0.00021917,2]
[320087509,1711144246656,-512.19,0.00021917,2]
[320087512,1711144246665,-2050.23,0.00021917,2]
[320087514,1711144246674,-500.83739531,0.00021917,2]
[320087516,1711144246683,-500.0,0.00021917,2]
[320087518,1711144246694,-578.98,0.00021917,2]
[320087520,1711144246703,-500.0,0.00021917,2]
[320087522,1711144246712,-500.0,0.00021917,2]
[320087523,1711144246722,-500.0,0.00021917,2]
[320087526,1711144246732,-947.69,0.00021917,2]
[320087527,1711144246741,-915.76,0.00021917,2]
[320087530,1711144246750,-500.0,0.00021917,2]
[320087532,1711144246759,-535.26,0.00021917,2]
[320087533,1711144246768,-744.84,0.00021917,2]
[320087535,1711144246778,-1415.24,0.00021917,2]
[320087537,1711144246787,-717.5,0.00021917,2]
[320087540,1711144246797,-500.0,0.00021917,2]
[320087541,1711144246806,-1532.72,0.00021917,2]
[320087542,1711144246815,-500.0,0.00021917,2]
[320087543,1711144246824,-500.0,0.00021917,2]
[320087544,1711144246833,-500.0,0.00021917,2]
[320087545,1711144246842,-2589.73,0.00021917,2]
[320087546,1711144246851,-1806.66,0.00021917,2]
[320087547,1711144246860,-2088.33,0.00021917,2]
[320087548,1711144246873,-500.0,0.00021917,2]
[320087549,1711144246882,-1729.43,0.00021917,2]
[320087550,1711144246891,-500.0,0.00021917,2]
[320087551,1711144246901,-646.35,0.00021917,2]
[320087552,1711144246910,-1075.34,0.00021917,2]
[320087553,1711144246920,-501.95511901,0.00021917,2]
[320087554,1711144246929,-843.62,0.00021917,2]
[320087555,1711144246938,-1662.16,0.00021917,2]
[320087556,1711144246947,-503.97446022,0.00021917,2]
[320087557,1711144246957,-500.0,0.00021917,2]
[320087558,1711144246966,-607.32,0.00021917,2]
[320087559,1711144246975,-2051.57,0.00021917,2]
[320087560,1711144246985,-1287.06,0.00021917,2]
[320087561,1711144246994,-500.0,0.00021917,2]
[320087562,1711144247003,-500.0,0.00021917,2]
[320087563,1711144247013,-767.98,0.00021917,2]
[320087564,1711144247022,-500.0,0.00021917,2]
[320087565,1711144247032,-500.0,0.00021917,2]
[320087566,1711144247041,-875.06,0.00021917,2]
[320087567,1711144247051,-1651.72,0.00021917,2]
[320087568,1711144247061,-500.0,0.00021917,2]
[320087569,1711144247070,-1432.77,0.00021917,2]
[320087570,1711144247079,-500.0,0.00021917,2]
[320087571,1711144247089,-500.0,0.00021917,2]
[320087572,1711144247099,-500.0,0.00021917,2]
[320087573,1711144247109,-500.0,0.00021917,2]
[320087574,1711144247118,-1299.06,0.00021917,2]
[320087575,1711144247127,-500.0,0.00021917,2]
[320087576,1711144247136,-914.91,0.00021917,2]
[320087577,1711144247150,-500.0,0.00021917,2]
[320087578,1711144247160,-1368.29,0.00021917,2]
[320087579,1711144247171,-5459.87,0.00021917,2]
[320087580,1711144247180,-500.0,0.00021917,2]
[320087581,1711144247189,-500.0,0.00021917,2]
[320087582,1711144247201,-500.0,0.00021917,2]
[320087583,1711144247211,-119.87944666,0.00021917,2]
[320087584,1711144247253,-380.12055334,0.00021917,2]
[320087585,1711144247264,-436.10883609,0.00021917,2]
[320087586,1711144247273,-500.0,0.00021917,2]
[320087587,1711144247283,-1120.05,0.00021917,2]
[320087588,1711144247293,-500.0,0.00021917,2]
[320087589,1711144247303,-543.56,0.00021917,2]
[320087590,1711144247313,-544.18,0.00021917,2]
[320087591,1711144247323,-500.0,0.00021917,2]
[320087592,1711144247333,-500.0,0.00021917,2]
[320087593,1711144247342,-500.0,0.00021917,2]
[320087594,1711144247351,-1587.32,0.00021917,2]
[320087595,1711144247362,-503.94322519,0.00021917,2]
[320087596,1711144247373,-502.86776789,0.00021917,2]
[320087597,1711144247383,-1477.23,0.00021917,2]
[320087598,1711144247393,-1852.4,0.00021917,2]
[320087599,1711144247402,-732.56,0.00021917,2]
[320087600,1711144247413,-1498.32,0.00021917,2]
[320087601,1711144247422,-500.0,0.00021917,2]
[320087602,1711144247431,-538.17,0.00021917,2]
[320087603,1711144247440,-500.0,0.00021917,2]
[320087604,1711144247450,-179.29555931,0.00021917,2]
[320087605,1711144247459,-244.62405817,0.00021917,2]
[320087606,1711144247539,-255.37594183,0.00021917,2]
[320087607,1711144247549,-500.0,0.00021917,2]
[320087608,1711144247559,-585.02744267,0.00021917,2]
[320087609,1711144247576,-415.1,0.00021917,2]
[320087610,1711144247600,-172.10255733,0.00021917,2]
[320087611,1711144247611,-765.66,0.00021917,2]
[320087612,1711144247621,-184.57283001,0.00021917,2]
[320087613,1711144247675,-315.42716999,0.00021917,2]
[320087614,1711144247685,-90.99343601,0.00021917,2]
[320087615,1711144247711,-1351.94656399,0.00021917,2]
[320087616,1711144247722,-500.0,0.00021917,2]
[320087617,1711144247733,-514.55,0.00021917,2]
[320087618,1711144247742,-500.0,0.00021917,2]
[320087619,1711144247752,-500.0,0.00021917,2]
[320087620,1711144247765,-1047.96,0.00021917,2]
[320087621,1711144247774,-285.45723272,0.00021917,2]
[320087622,1711144247787,-214.54276728,0.00021917,2]
[320087623,1711144247796,-99.83223272,0.00021917,2]
[320087624,1711144249028,-161.33776728,0.00021917,2]
[320087625,1711144249038,-500.0,0.00021917,2]
[320087626,1711144249054,-496.4052914,0.00021917,2]
[320087627,1711144249068,-3.5947086,0.00021917,2]
[320087628,1711144249078,-500.0,0.00021917,2]
[320087629,1711144249088,-500.0,0.00021917,2]
[320087630,1711144249098,-820.35,0.00021917,2]
[320087631,1711144249107,-1593.78,0.00021917,2]
[320087632,1711144249117,-980.01,0.00021917,2]
[320087633,1711144249127,-1292.02,0.00021917,2]
[320087634,1711144249137,-246.62316073,0.00021917,2]
[320087635,1711144249147,-548.36805488,0.00021917,2]
[320087636,1711144249157,-500.0,0.00021917,2]
[320087637,1711144249178,-1744.32,0.00021917,2]
[320087638,1711144249188,-500.0,0.00021917,2]
[320087639,1711144249198,-500.0,0.00021917,2]
[320087640,1711144249209,-1092.28,0.00021917,2]
[320087641,1711144249221,-944.23,0.00021917,2]
[320087642,1711144249234,-500.0,0.00021917,2]
[320087643,1711144249245,-500.0,0.00021917,2]
[320087644,1711144249257,-1514.14,0.00021917,2]
[320087645,1711144249269,-500.0,0.00021917,2]
[320087646,1711144249664,-500.0,0.00021917,2]
[320087647,1711144249674,-1134.6,0.00021917,2]
[320087648,1711144249683,-500.0,0.00021917,2]
[320087649,1711144249692,-912.39,0.00021917,2]
[320087650,1711144249702,-2230.71,0.00021917,2]
[320087651,1711144249711,-500.0,0.00021917,2]
[320087652,1711144249720,-500.0,0.00021917,2]
[320087653,1711144249730,-1360.07,0.00021917,2]
[320087654,1711144249741,-500.0,0.00021917,2]
[320087655,1711144249752,-500.0,0.00021917,2]
[320087656,1711144249763,-573.36,0.00021917,2]
[320087657,1711144249772,-2070.33,0.00021917,2]
[320087658,1711144249782,-500.0,0.00021917,2]
[320087659,1711144249791,-1342.42,0.00021917,2]
[320087660,1711144249800,-500.0,0.00021917,2]
[320087661,1711144249810,-500.0,0.00021917,2]
[320087662,1711144249819,-500.0,0.00021917,2]
[320087663,1711144249828,-1732.87,0.00021917,2]
[320087664,1711144249838,-2107.13,0.00021917,2]
[320087665,1711144249847,-500.0,0.00021917,2]
[320087666,1711144249857,-752.68,0.00021917,2]
[320087667,1711144249867,-500.0,0.00021917,2]
[320087668,1711144249876,-706.8,0.00021917,2]
[320087669,1711144249886,-749.53,0.00021917,2]
[320087670,1711144249895,-500.0,0.00021917,2]
[320087671,1711144249904,-500.0,0.00021917,2]
[320087672,1711144249914,-471.48314343,0.00021917,2]
[320087673,1711144249923,-500.0,0.00021917,2]
[320087674,1711144249933,-1701.9,0.00021917,2]
[320087675,1711144249942,-500.0,0.00021917,2]
[320087676,1711144249951,-1622.85,0.00021917,2]
[320087677,1711144249961,-500.0,0.00021917,2]
[320087678,1711144249970,-500.0,0.00021917,2]
[320087679,1711144249980,-500.0,0.00021917,2]
[320087680,1711144249989,-850.99,0.00021917,2]